[Event "Snabbschacks-SM 2025"]
[Site "Norrköping, Sweden"]
[Date "2025.09.27"]
[Round "2.6"]
[White "Lilliehook, Victor"]
[Black "Lindh, Fredrik"]
[Result "0-1"]
[TimeControl "25 min + 10 sec/move"]
[BlackTitle "FM"]
[WhiteElo "2136"]
[BlackElo "2249"]

1. e4 {[%clk 00:25:17]} {[%emt 00:00:02]} c5 {[%clk 00:25:19]} {[%emt
00:00:02]} 2. Nf3 {[%clk 00:25:25]} {[%emt 00:00:01]} e6 {[%clk 00:25:28]}
{[%emt 00:00:02]} 3. d3 {[%clk 00:25:32]} {[%emt 00:00:02]} Nc6 {[%clk
00:25:36]} {[%emt 00:00:02]} 4. g3 {[%clk 00:25:41]} {[%emt 00:00:02]} d5
{[%clk 00:25:33]} {[%emt 00:00:13]} 5. Nbd2 {[%clk 00:25:29]} {[%emt 00:00:21]}
Nf6 {[%clk 00:25:34]} {[%emt 00:00:10]} 6. Bg2 {[%clk 00:25:36]} {[%emt
00:00:02]} dxe4 {[%clk 00:25:29]} {[%emt 00:00:16]} 7. dxe4 {[%clk 00:25:35]}
{[%emt 00:00:11]} e5 {[%clk 00:25:37]} {[%emt 00:00:03]} 8. c3 {[%clk
00:25:39]} {[%emt 00:00:05]} Be7 {[%clk 00:25:44]} {[%emt 00:00:02]} 9. h3
{[%clk 00:25:40]} {[%emt 00:00:09]} O-O {[%clk 00:25:40]} {[%emt 00:00:15]} 10.
O-O {[%clk 00:25:45]} {[%emt 00:00:03]} h6 {[%clk 00:24:32]} {[%emt 00:01:20]}
11. Qe2 {[%clk 00:22:56]} {[%emt 00:02:59]} Be6 {[%clk 00:24:16]} {[%emt
00:00:26]} 12. Rd1 {[%clk 00:22:13]} {[%emt 00:00:53]} Qc7 {[%clk 00:24:24]}
{[%emt 00:00:03]} 13. Nf1 {[%clk 00:22:16]} {[%emt 00:00:06]} Rfd8 {[%clk
00:23:31]} {[%emt 00:01:03]} 14. Rxd8+ {[%clk 00:21:34]} {[%emt 00:00:52]} Rxd8
{[%clk 00:23:39]} {[%emt 00:00:02]} 15. Nh4 {[%clk 00:21:38]} {[%emt 00:00:07]}
Qd7 {[%clk 00:19:30]} {[%emt 00:04:19]} 16. Kh2 {[%clk 00:19:02]} {[%emt
00:02:45]} Ne8 {[%clk 00:18:06]} {[%emt 00:01:35]} 17. Qh5 {[%clk 00:16:23]}
{[%emt 00:02:49]} Nf6 {[%clk 00:12:33]} {[%emt 00:05:43]} 18. Qf3 {[%clk
00:14:22]} {[%emt 00:02:11]} Nh7 {[%clk 00:08:13]} {[%emt 00:04:30]} 19. Nf5
{[%clk 00:13:17]} {[%emt 00:01:15]} Bf8 {[%clk 00:08:21]} {[%emt 00:00:02]} 20.
h4 {[%clk 00:11:43]} Qd3 {[%clk 00:05:56]} {[%emt 00:04:18]} 21. g4 {[%clk
00:08:34]} {[%emt 00:03:19]} Qxf3 {[%clk 00:03:09]} {[%emt 00:02:57]} 22. Bxf3
{[%clk 00:08:43]} {[%emt 00:00:01]} Na5 {[%clk 00:03:18]} {[%emt 00:00:02]} 23.
N1e3 {[%clk 00:07:27]} {[%emt 00:01:24]} g6 {[%clk 00:03:18]} {[%emt 00:00:12]}
24. Ng3 {[%clk 00:07:27]} {[%emt 00:00:09]} Be7 {[%clk 00:03:00]} {[%emt
00:00:27]} 25. h5 {[%clk 00:06:44]} {[%emt 00:00:53]} Bg5 {[%clk 00:02:56]}
{[%emt 00:00:15]} 26. Nd5 {[%clk 00:05:30]} {[%emt 00:01:24]} Bxc1 {[%clk
00:02:53]} {[%emt 00:00:14]} 27. Rxc1 {[%clk 00:05:38]} Ng5 {[%clk 00:02:57]}
{[%emt 00:00:05]} 28. Be2 {[%clk 00:02:24]} {[%emt 00:03:24]} Kg7 {[%clk
00:01:58]} {[%emt 00:01:09]} 29. Ne3 {[%clk 00:00:47]} {[%emt 00:01:47]} Rd2
{[%clk 00:01:50]} {[%emt 00:00:19]} 30. b4 {[%clk 00:00:22]} {[%emt 00:00:35]}
cxb4 {[%clk 00:01:50]} {[%emt 00:00:10]} 31. cxb4 {[%clk 00:00:32]} {[%emt
00:00:01]} Nc6 {[%clk 00:01:59]} 32. a3 {[%clk 00:00:13]} {[%emt 00:00:29]} Nd4
{[%clk 00:01:50]} {[%emt 00:00:18]} 33. Re1 {[%clk 00:00:12]} {[%emt 00:00:11]}
Ngf3+ {[%clk 00:01:53]} {[%emt 00:00:08]} 0-1

[Event "Snabbschacks-SM 2025"]
[Site "Norrköping, Sweden"]
[Date "2025.09.27"]
[Round "4.2"]
[White "Olsson, Linus"]
[Black "Religa, Marek"]
[Result "1/2-1/2"]
[TimeControl "25 min + 10 sec/move"]
[WhiteTitle "FM"]
[WhiteElo "2166"]
[BlackElo "2207"]

1. d4 {[%clk 00:25:18]} Nf6 {[%clk 00:23:50]} {[%emt 00:01:32]} 2. c4 {[%clk
00:25:24]} {[%emt 00:00:04]} g6 {[%clk 00:23:58]} {[%emt 00:00:02]} 3. Nc3
{[%clk 00:25:28]} {[%emt 00:00:05]} Bg7 {[%clk 00:24:07]} 4. e4 {[%clk
00:25:34]} {[%emt 00:00:05]} d6 {[%clk 00:24:16]} {[%emt 00:00:02]} 5. Nf3
{[%clk 00:25:39]} {[%emt 00:00:05]} O-O {[%clk 00:24:24]} {[%emt 00:00:02]} 6.
Be2 {[%clk 00:25:46]} {[%emt 00:00:03]} e5 {[%clk 00:24:33]} {[%emt 00:00:02]}
7. O-O {[%clk 00:25:45]} {[%emt 00:00:09]} exd4 {[%clk 00:24:42]} {[%emt
00:00:03]} 8. Nxd4 {[%clk 00:25:48]} {[%emt 00:00:07]} Re8 {[%clk 00:24:51]} 9.
f3 {[%clk 00:25:49]} {[%emt 00:00:09]} c6 {[%clk 00:25:00]} {[%emt 00:00:02]}
10. Kh1 {[%clk 00:25:52]} {[%emt 00:00:06]} d5 {[%clk 00:25:09]} {[%emt
00:00:02]} 11. exd5 {[%clk 00:23:24]} {[%emt 00:02:38]} cxd5 {[%clk 00:25:17]}
{[%emt 00:00:02]} 12. c5 {[%clk 00:23:24]} {[%emt 00:00:09]} Bf8 {[%clk
00:19:58]} {[%emt 00:05:30]} 13. Nb3 {[%clk 00:19:54]} {[%emt 00:03:39]} h6
{[%clk 00:18:55]} {[%emt 00:01:13]} 14. Bf4 {[%clk 00:15:16]} {[%emt 00:04:49]}
a6 {[%clk 00:19:04]} {[%emt 00:00:01]} 15. Qd2 {[%clk 00:14:44]} {[%emt
00:00:42]} Kh7 {[%clk 00:17:00]} {[%emt 00:02:14]} 16. Rfd1 {[%clk 00:14:38]}
{[%emt 00:00:16]} Be6 {[%clk 00:17:04]} {[%emt 00:00:06]} 17. Rac1 {[%clk
00:13:38]} {[%emt 00:01:10]} Nbd7 {[%clk 00:16:52]} {[%emt 00:00:23]} 18. Bf1
{[%clk 00:12:41]} {[%emt 00:01:06]} Rc8 {[%clk 00:15:56]} {[%emt 00:01:06]} 19.
Na4 {[%clk 00:12:18]} {[%emt 00:00:33]} Nh5 {[%clk 00:14:59]} {[%emt 00:01:07]}
20. Be3 {[%clk 00:11:57]} {[%emt 00:00:31]} Bg7 {[%clk 00:13:17]} {[%emt
00:01:51]} 21. Bd4 {[%clk 00:11:56]} {[%emt 00:00:11]} Bf8 {[%clk 00:10:16]}
{[%emt 00:03:12]} 22. Na5 {[%clk 00:11:33]} {[%emt 00:00:32]} Rc7 {[%clk
00:08:24]} {[%emt 00:02:02]} 23. b4 {[%clk 00:10:52]} {[%emt 00:00:51]} Be7
{[%clk 00:07:38]} {[%emt 00:00:57]} 24. Be3 {[%clk 00:10:15]} {[%emt 00:00:47]}
Bg5 {[%clk 00:07:07]} {[%emt 00:00:41]} 25. Bxg5 {[%clk 00:10:08]} {[%emt
00:00:17]} hxg5 {[%clk 00:07:13]} {[%emt 00:00:04]} 26. Nc3 {[%clk 00:09:34]}
{[%emt 00:00:43]} Ne5 {[%clk 00:05:29]} {[%emt 00:01:54]} 27. Qd4 {[%clk
00:07:10]} {[%emt 00:02:34]} f6 {[%clk 00:05:35]} {[%emt 00:00:05]} 28. Rd2
{[%clk 00:06:58]} {[%emt 00:00:21]} Rd7 {[%clk 00:04:14]} {[%emt 00:01:32]} 29.
Rcd1 {[%clk 00:06:58]} {[%emt 00:00:10]} Nf4 {[%clk 00:03:51]} {[%emt
00:00:33]} 30. Ne2 {[%clk 00:06:51]} {[%emt 00:00:17]} Nxe2 {[%clk 00:03:45]}
{[%emt 00:00:16]} 31. Bxe2 {[%clk 00:06:54]} {[%emt 00:00:07]} Kg7 {[%clk
00:03:18]} {[%emt 00:00:37]} 32. Bf1 {[%clk 00:06:51]} {[%emt 00:00:13]} Qc7
{[%clk 00:03:20]} {[%emt 00:00:08]} 33. Rc1 {[%clk 00:06:14]} {[%emt 00:00:48]}
Rh8 {[%clk 00:03:18]} {[%emt 00:00:12]} 34. Qg1 {[%clk 00:04:35]} {[%emt
00:01:48]} g4 {[%clk 00:03:16]} {[%emt 00:00:13]} 35. f4 {[%clk 00:03:55]}
{[%emt 00:00:50]} g3 {[%clk 00:03:20]} {[%emt 00:00:06]} 36. h3 {[%clk
00:04:01]} {[%emt 00:00:04]} Ng4 {[%clk 00:02:42]} {[%emt 00:00:48]} 37. Qd4
{[%clk 00:04:02]} {[%emt 00:00:08]} Nf2+ {[%clk 00:02:49]} {[%emt 00:00:03]} 38.
Rxf2 {[%clk 00:03:50]} {[%emt 00:00:22]} gxf2 {[%clk 00:02:58]} {[%emt
00:00:01]} 39. Qxf2 {[%clk 00:03:58]} {[%emt 00:00:02]} d4 {[%clk 00:02:33]}
{[%emt 00:00:36]} 40. Rd1 {[%clk 00:03:19]} {[%emt 00:00:49]} d3 {[%clk
00:01:53]} {[%emt 00:00:51]} 41. a3 {[%clk 00:01:46]} {[%emt 00:01:43]} Rhd8
{[%clk 00:01:53]} {[%emt 00:00:09]} 42. Rd2 {[%clk 00:01:32]} {[%emt 00:00:24]}
Rd4 {[%clk 00:01:59]} {[%emt 00:00:04]} 43. g3 {[%clk 00:01:34]} {[%emt
00:00:08]} Qd7 {[%clk 00:02:04]} {[%emt 00:00:06]} 44. Kh2 {[%clk 00:01:38]}
{[%emt 00:00:05]} Rh8 {[%clk 00:01:41]} {[%emt 00:00:33]} 45. h4 {[%clk
00:01:45]} {[%emt 00:00:02]} g5 {[%clk 00:01:42]} {[%emt 00:00:09]} 46. fxg5
{[%clk 00:01:32]} {[%emt 00:00:24]} fxg5 {[%clk 00:01:48]} {[%emt 00:00:05]} 47.
Qe3 {[%clk 00:01:22]} {[%emt 00:00:19]} gxh4 {[%clk 00:01:25]} {[%emt
00:00:33]} 48. Qg5+ {[%clk 00:01:23]} {[%emt 00:00:09]} Kf8 {[%clk 00:01:11]}
{[%emt 00:00:24]} 49. Qf6+ {[%clk 00:01:08]} {[%emt 00:00:24]} Kg8 {[%clk
00:01:08]} {[%emt 00:00:13]} 50. Qg6+ {[%clk 00:01:09]} {[%emt 00:00:09]} Kf8
{[%clk 00:01:07]} {[%emt 00:00:12]} 51. Qf6+ {[%clk 00:00:35]} {[%emt
00:00:44]} Kg8 {[%clk 00:01:16]} 52. Qg6+ {[%clk 00:00:33]} {[%emt 00:00:12]}
1/2-1/2

[Event "Snabbschacks-SM 2025"]
[Site "Norrköping, Sweden"]
[Date "2025.09.27"]
[Round "5.8"]
[White "Dingertz, Filip"]
[Black "Wernberg, Hugo"]
[Result "0-1"]
[TimeControl "25 min + 10 sec/move"]
[BlackTitle "FM"]
[WhiteElo "2049"]
[BlackElo "2285"]

1. Nf3 {[%clk 00:25:19]} {[%emt 00:00:02]} d5 {[%clk 00:25:18]} {[%emt
00:00:02]} 2. e3 {[%clk 00:25:28]} c5 {[%clk 00:25:27]} {[%emt 00:00:02]} 3. b3
{[%clk 00:25:37]} f6 {[%clk 00:25:35]} {[%emt 00:00:02]} 4. Bb5+ {[%clk
00:25:34]} {[%emt 00:00:13]} Bd7 {[%clk 00:25:23]} {[%emt 00:00:21]} 5. Bxd7+
{[%clk 00:25:00]} {[%emt 00:00:44]} Qxd7 {[%clk 00:24:44]} {[%emt 00:00:49]} 6.
d4 {[%clk 00:25:06]} {[%emt 00:00:04]} cxd4 {[%clk 00:24:18]} {[%emt 00:00:36]}
7. exd4 {[%clk 00:25:03]} {[%emt 00:00:13]} Nc6 {[%clk 00:24:07]} {[%emt
00:00:21]} 8. O-O {[%clk 00:25:11]} {[%emt 00:00:02]} e6 {[%clk 00:23:40]}
{[%emt 00:00:37]} 9. c4 {[%clk 00:24:34]} {[%emt 00:00:47]} Bd6 {[%clk
00:22:24]} {[%emt 00:01:26]} 10. Nc3 {[%clk 00:24:34]} {[%emt 00:00:10]} Nge7
{[%clk 00:22:22]} {[%emt 00:00:12]} 11. Re1 {[%clk 00:21:55]} {[%emt 00:02:50]}
Kf7 {[%clk 00:22:10]} {[%emt 00:00:22]} 12. Be3 {[%clk 00:18:36]} {[%emt
00:03:28]} Rac8 {[%clk 00:20:47]} {[%emt 00:01:34]} 13. Qd2 {[%clk 00:18:20]}
{[%emt 00:00:26]} Rhd8 {[%clk 00:19:40]} {[%emt 00:01:17]} 14. c5 {[%clk
00:17:48]} {[%emt 00:00:42]} Bc7 {[%clk 00:17:17]} {[%emt 00:02:33]} 15. Bf4
{[%clk 00:17:53]} {[%emt 00:00:05]} a6 {[%clk 00:17:25]} {[%emt 00:00:03]} 16.
a3 {[%clk 00:17:30]} {[%emt 00:00:33]} Ng6 {[%clk 00:17:03]} {[%emt 00:00:31]}
17. Bxc7 {[%clk 00:17:29]} {[%emt 00:00:11]} Rxc7 {[%clk 00:16:45]} {[%emt
00:00:28]} 18. b4 {[%clk 00:17:37]} {[%emt 00:00:03]} e5 {[%clk 00:13:47]}
{[%emt 00:03:08]} 19. dxe5 {[%clk 00:16:29]} {[%emt 00:01:18]} Ncxe5 {[%clk
00:12:24]} {[%emt 00:01:32]} 20. Nd4 {[%clk 00:15:13]} {[%emt 00:01:26]} Qg4
{[%clk 00:10:27]} {[%emt 00:02:07]} 21. h3 {[%clk 00:14:47]} {[%emt 00:00:36]}
Qf4 {[%clk 00:09:37]} {[%emt 00:00:59]} 22. Rad1 {[%clk 00:13:08]} {[%emt
00:01:50]} Qxd2 {[%clk 00:08:51]} {[%emt 00:00:57]} 23. Rxd2 {[%clk 00:13:17]}
Nc4 {[%clk 00:08:59]} {[%emt 00:00:01]} 24. Rdd1 {[%clk 00:12:58]} {[%emt
00:00:29]} Re7 {[%clk 00:08:36]} {[%emt 00:00:33]} 25. Nf5 {[%clk 00:11:49]}
{[%emt 00:01:19]} Rxe1+ {[%clk 00:08:22]} {[%emt 00:00:24]} 26. Rxe1 {[%clk
00:11:59]} Nge5 {[%clk 00:07:35]} {[%emt 00:00:57]} 27. Rd1 {[%clk 00:10:18]}
{[%emt 00:01:51]} g6 {[%clk 00:06:25]} {[%emt 00:01:19]} 28. Nd6+ {[%clk
00:08:19]} {[%emt 00:02:09]} Nxd6 {[%clk 00:06:24]} {[%emt 00:00:11]} 29. Rxd5
{[%clk 00:08:02]} {[%emt 00:00:27]} Ke6 {[%clk 00:04:04]} {[%emt 00:02:31]} 30.
Rxd6+ {[%clk 00:08:01]} {[%emt 00:00:10]} Rxd6 {[%clk 00:04:09]} {[%emt
00:00:05]} 31. cxd6 {[%clk 00:08:09]} {[%emt 00:00:02]} Nc4 {[%clk 00:03:45]}
{[%emt 00:00:34]} 32. a4 {[%clk 00:05:33]} {[%emt 00:02:46]} Nxd6 {[%clk
00:03:53]} {[%emt 00:00:02]} 33. Kf1 {[%clk 00:01:04]} {[%emt 00:04:39]} Ke5
{[%clk 00:04:02]} {[%emt 00:00:01]} 34. Ke2 {[%clk 00:00:37]} {[%emt 00:00:37]}
Kd4 {[%clk 00:04:11]} {[%emt 00:00:02]} 35. Kd2 {[%clk 00:00:46]} Kc4 {[%clk
00:04:08]} {[%emt 00:00:13]} 36. b5 {[%clk 00:00:55]} {[%emt 00:00:01]} axb5
{[%clk 00:03:12]} {[%emt 00:01:06]} 37. axb5 {[%clk 00:01:04]} {[%emt
00:00:01]} b6 {[%clk 00:02:36]} {[%emt 00:00:46]} 38. h4 {[%clk 00:00:27]}
{[%emt 00:00:47]} f5 {[%clk 00:02:37]} {[%emt 00:00:10]} 39. f3 {[%clk
00:00:31]} {[%emt 00:00:06]} Kc5 {[%clk 00:01:48]} {[%emt 00:00:58]} 40. g4
{[%clk 00:00:26]} {[%emt 00:00:16]} Nxb5 {[%clk 00:01:50]} {[%emt 00:00:07]} 41.
Ne2 {[%clk 00:00:20]} {[%emt 00:00:16]} Nd4 {[%clk 00:01:52]} {[%emt 00:00:08]}
42. Ng1 {[%clk 00:00:15]} {[%emt 00:00:15]} b5 {[%clk 00:01:54]} {[%emt
00:00:08]} 43. h5 {[%clk 00:00:17]} {[%emt 00:00:08]} b4 {[%clk 00:01:50]}
{[%emt 00:00:14]} 44. hxg6 {[%clk 00:00:24]} {[%emt 00:00:03]} hxg6 {[%clk
00:01:59]} 45. gxf5 {[%clk 00:00:33]} gxf5 {[%clk 00:02:07]} {[%emt 00:00:01]}
46. f4 {[%clk 00:00:27]} {[%emt 00:00:16]} Kc4 {[%clk 00:02:12]} {[%emt
00:00:05]} 47. Nh3 {[%clk 00:00:25]} {[%emt 00:00:12]} Kb3 {[%clk 00:01:42]}
{[%emt 00:00:40]} 48. Nf2 {[%clk 00:00:25]} {[%emt 00:00:10]} Ka2 {[%clk
00:01:45]} {[%emt 00:00:07]} 49. Nd3 {[%clk 00:00:33]} {[%emt 00:00:02]} b3
{[%clk 00:01:50]} {[%emt 00:00:06]} 50. Nc1+ {[%clk 00:00:14]} {[%emt
00:00:28]} Ka3 {[%clk 00:01:57]} {[%emt 00:00:03]} 51. Nxb3 {[%clk 00:00:16]}
{[%emt 00:00:08]} Kxb3 {[%clk 00:02:04]} {[%emt 00:00:04]} 52. Kd3 {[%clk
00:00:26]} Ne6 {[%clk 00:02:13]} 0-1

[ePGN "0.1;DGT LiveChess/2.2.7"]

[Event "Snabbschacks-SM 2025"]
[Site "Norrköping, Sweden"]
[Date "2025.09.27"]
[Round "1.1"]
[White "Ravik, Andreas"]
[Black "Smith, Axel"]
[Result "0-1"]
[TimeControl "25 min + 10 sec/move"]
[BlackTitle "GM"]
[WhiteElo "1992"]
[BlackElo "2431"]

1. d4 {[%clk 00:25:15]} {[%emt 00:00:04]} Nf6 {[%clk 00:25:19]} {[%emt
00:00:02]} 2. Nf3 {[%clk 00:25:19]} {[%emt 00:00:06]} c5 {[%clk 00:25:28]}
{[%emt 00:00:01]} 3. d5 {[%clk 00:25:19]} {[%emt 00:00:10]} b5 {[%clk
00:25:37]} {[%emt 00:00:01]} 4. b3 {[%clk 00:23:38]} {[%emt 00:01:50]} e6
{[%clk 00:24:47]} {[%emt 00:01:00]} 5. c4 {[%clk 00:22:39]} {[%emt 00:01:08]}
exd5 {[%clk 00:23:53]} {[%emt 00:01:05]} 6. cxd5 {[%clk 00:22:46]} {[%emt
00:00:03]} Bb7 {[%clk 00:20:52]} {[%emt 00:03:11]} 7. e3 {[%clk 00:21:20]}
{[%emt 00:01:35]} Nxd5 {[%clk 00:13:34]} {[%emt 00:07:29]} 8. Bb2 {[%clk
00:20:35]} {[%emt 00:00:54]} Na6 {[%clk 00:13:01]} {[%emt 00:00:45]} 9. Nbd2
{[%clk 00:20:04]} {[%emt 00:00:40]} Nac7 {[%clk 00:12:49]} {[%emt 00:00:22]} 10.
Be2 {[%clk 00:19:46]} {[%emt 00:00:27]} Nf6 {[%clk 00:12:37]} {[%emt 00:00:23]}
11. O-O {[%clk 00:19:48]} {[%emt 00:00:08]} Be7 {[%clk 00:12:41]} {[%emt
00:00:07]} 12. a4 {[%clk 00:19:31]} {[%emt 00:00:25]} a6 {[%clk 00:12:32]}
{[%emt 00:00:20]} 13. Qc2 {[%clk 00:19:11]} {[%emt 00:00:29]} O-O {[%clk
00:12:30]} {[%emt 00:00:14]} 14. Ng5 {[%clk 00:18:11]} {[%emt 00:01:09]} h6
{[%clk 00:10:57]} {[%emt 00:01:43]} 15. Ngf3 {[%clk 00:16:19]} {[%emt
00:02:02]} Nfd5 {[%clk 00:08:26]} {[%emt 00:02:41]} 16. Rfd1 {[%clk 00:15:25]}
{[%emt 00:01:03]} d6 {[%clk 00:08:00]} {[%emt 00:00:37]} 17. Ne4 {[%clk
00:13:21]} {[%emt 00:02:14]} Qc8 {[%clk 00:06:02]} {[%emt 00:02:09]} 18. Ng3
{[%clk 00:13:11]} {[%emt 00:00:19]} Nb4 {[%clk 00:05:22]} {[%emt 00:00:51]} 19.
Qf5 {[%clk 00:12:58]} {[%emt 00:00:22]} Qe6 {[%clk 00:04:47]} {[%emt 00:00:46]}
20. Bc3 {[%clk 00:11:03]} {[%emt 00:02:05]} Nbd5 {[%clk 00:04:38]} {[%emt
00:00:20]} 21. Bb2 {[%clk 00:11:00]} {[%emt 00:00:12]} g6 {[%clk 00:04:14]}
{[%emt 00:00:34]} 22. Qc2 {[%clk 00:10:35]} {[%emt 00:00:34]} Bf6 {[%clk
00:04:10]} {[%emt 00:00:16]} 23. Bxf6 {[%clk 00:10:24]} {[%emt 00:00:20]} Nxf6
{[%clk 00:04:03]} {[%emt 00:00:17]} 24. b4 {[%clk 00:09:55]} {[%emt 00:00:39]}
c4 {[%clk 00:02:45]} {[%emt 00:01:29]} 25. Nd4 {[%clk 00:09:35]} {[%emt
00:00:29]} Qe5 {[%clk 00:02:52]} {[%emt 00:00:04]} 26. Bf3 {[%clk 00:09:27]}
{[%emt 00:00:18]} Bxf3 {[%clk 00:02:36]} {[%emt 00:00:26]} 27. gxf3 {[%clk
00:09:35]} {[%emt 00:00:02]} Nfd5 {[%clk 00:02:19]} {[%emt 00:00:27]} 28. Nc6
{[%clk 00:09:09]} {[%emt 00:00:35]} Qe8 {[%clk 00:02:15]} {[%emt 00:00:14]} 29.
Nd4 {[%clk 00:08:30]} {[%emt 00:00:50]} Nxb4 {[%clk 00:02:19]} {[%emt
00:00:06]} 30. Qb1 {[%clk 00:08:22]} {[%emt 00:00:17]} Nbd5 {[%clk 00:02:14]}
{[%emt 00:00:16]} 31. axb5 {[%clk 00:08:25]} {[%emt 00:00:07]} Nc3 {[%clk
00:02:01]} {[%emt 00:00:23]} 32. Qb4 {[%clk 00:08:19]} {[%emt 00:00:16]} Nxd1
{[%clk 00:01:59]} {[%emt 00:00:12]} 33. Rxd1 {[%clk 00:08:27]} {[%emt
00:00:02]} Nxb5 {[%clk 00:01:03]} {[%emt 00:01:05]} 34. Qxc4 {[%clk 00:08:12]}
{[%emt 00:00:25]} Nxd4 {[%clk 00:01:05]} {[%emt 00:00:08]} 35. Rxd4 {[%clk
00:08:15]} {[%emt 00:00:07]} Qb5 {[%clk 00:00:55]} {[%emt 00:00:20]} 36. Qc7
{[%clk 00:08:22]} {[%emt 00:00:03]} d5 {[%clk 00:00:57]} {[%emt 00:00:09]} 37.
Rg4 {[%clk 00:08:14]} {[%emt 00:00:16]} Rac8 {[%clk 00:00:50]} {[%emt
00:00:19]} 38. Qe7 {[%clk 00:08:02]} {[%emt 00:00:21]} Rc4 {[%clk 00:00:36]}
{[%emt 00:00:24]} 39. f4 {[%clk 00:07:59]} {[%emt 00:00:13]} Qc5 {[%clk
00:00:31]} {[%emt 00:00:15]} 40. Qf6 {[%clk 00:08:01]} {[%emt 00:00:07]} Qc6
{[%clk 00:00:36]} {[%emt 00:00:06]} 41. Qb2 {[%clk 00:07:03]} {[%emt 00:01:08]}
Kh7 {[%clk 00:00:38]} {[%emt 00:00:09]} 42. Qa3 {[%clk 00:06:13]} {[%emt
00:01:00]} Rg8 {[%clk 00:00:41]} {[%emt 00:00:06]} 43. h3 {[%clk 00:05:54]}
{[%emt 00:00:29]} h5 {[%clk 00:00:40]} {[%emt 00:00:11]} 44. Rg5 {[%clk
00:05:44]} {[%emt 00:00:19]} f6 {[%clk 00:00:26]} {[%emt 00:00:25]} 45. Nxh5
{[%clk 00:04:25]} {[%emt 00:01:29]} gxh5 {[%clk 00:00:28]} {[%emt 00:00:08]} 46.
Qe7+ {[%clk 00:04:31]} {[%emt 00:00:04]} Kh8 {[%clk 00:00:35]} {[%emt
00:00:04]} 0-1

[Event "Snabbschacks-SM 2025"]
[Site "Norrköping, Sweden"]
[Date "2025.09.27"]
[Round "2.7"]
[White "Bohman Karlholm, Adrian"]
[Black "Eriksson, Kristian"]
[Result "1/2-1/2"]
[TimeControl "25 min + 10 sec/move"]
[WhiteElo "2102"]
[BlackElo "2033"]

1. d4 {[%clk 00:25:18]} {[%emt 00:00:01]} Nf6 {[%clk 00:25:17]} {[%emt
00:00:03]} 2. c4 {[%clk 00:25:26]} {[%emt 00:00:03]} e6 {[%clk 00:25:24]}
{[%emt 00:00:03]} 3. Nc3 {[%clk 00:25:34]} {[%emt 00:00:03]} Bb4 {[%clk
00:25:31]} {[%emt 00:00:03]} 4. g3 {[%clk 00:25:41]} {[%emt 00:00:03]} O-O
{[%clk 00:25:25]} {[%emt 00:00:16]} 5. Bg2 {[%clk 00:25:48]} {[%emt 00:00:02]}
Bxc3+ {[%clk 00:25:16]} {[%emt 00:00:20]} 6. bxc3 {[%clk 00:25:55]} {[%emt
00:00:02]} d6 {[%clk 00:25:24]} {[%emt 00:00:03]} 7. Nf3 {[%clk 00:25:58]}
{[%emt 00:00:06]} Nc6 {[%clk 00:24:45]} {[%emt 00:00:50]} 8. O-O {[%clk
00:25:33]} {[%emt 00:00:34]} e5 {[%clk 00:24:28]} {[%emt 00:00:27]} 9. Bg5
{[%clk 00:22:28]} {[%emt 00:03:15]} h6 {[%clk 00:24:11]} {[%emt 00:00:28]} 10.
dxe5 {[%clk 00:22:13]} {[%emt 00:00:24]} hxg5 {[%clk 00:23:49]} {[%emt
00:00:32]} 11. exf6 {[%clk 00:22:21]} {[%emt 00:00:02]} Qxf6 {[%clk 00:23:27]}
{[%emt 00:00:32]} 12. Nd4 {[%clk 00:20:18]} {[%emt 00:02:13]} Bd7 {[%clk
00:22:44]} {[%emt 00:00:53]} 13. Rb1 {[%clk 00:17:59]} {[%emt 00:02:29]} Rab8
{[%clk 00:20:05]} {[%emt 00:02:49]} 14. Nxc6 {[%clk 00:15:27]} {[%emt
00:02:42]} Bxc6 {[%clk 00:19:51]} {[%emt 00:00:25]} 15. Bxc6 {[%clk 00:15:11]}
{[%emt 00:00:26]} bxc6 {[%clk 00:19:58]} {[%emt 00:00:02]} 16. Qd4 {[%clk
00:15:04]} {[%emt 00:00:17]} c5 {[%clk 00:18:55]} {[%emt 00:01:14]} 17. Qd3
{[%clk 00:12:33]} {[%emt 00:02:40]} Rb6 {[%clk 00:17:20]} {[%emt 00:01:45]} 18.
Rb5 {[%clk 00:11:57]} {[%emt 00:00:46]} Rfb8 {[%clk 00:16:21]} {[%emt
00:01:10]} 19. Rfb1 {[%clk 00:10:34]} {[%emt 00:01:33]} a6 {[%clk 00:14:01]}
{[%emt 00:02:30]} 20. Rxb6 {[%clk 00:08:54]} {[%emt 00:01:50]} Rxb6 {[%clk
00:14:06]} {[%emt 00:00:05]} 21. Rxb6 {[%clk 00:08:55]} {[%emt 00:00:09]} cxb6
{[%clk 00:14:14]} {[%emt 00:00:03]} 22. Kg2 {[%emt 00:00:07]} 1/2-1/2